bitfinex-derivatives/quotes_SOLF0:USTF0_20250703
["timestamp","ask_amount","ask_price","bid_price","bid_amount"]
[1751553248566,2.2523,152.27,152.17,273.62]
[1751553248872,2.2523,152.27,152.21,6.5666]
[1751553249071,2.2523,152.27,152.18,4.5994]
[1751553249265,2.2523,152.27,152.22,6.5663]
[1751553249466,2.2523,152.27,152.19,2.387]
[1751553249666,12.35201939,152.28,152.19,2.387]
[1751553250571,67.49201939,152.31,152.19,2.387]
[1751553250766,12.35201939,152.31,152.19,2.387]
[1751553250971,6.5646,152.27,152.2,12.35201939]
[1751553251274,12.35201939,152.31,152.2,12.35201939]
[1751553251468,12.35201939,152.31,152.19,2.387]
[1751553251670,12.35201939,152.29,152.19,2.387]
[1751553252073,6.5654,152.25,152.21,6.5669]
[1751553252265,12.35201939,152.29,152.21,6.5669]
[1751553252470,5.23521977,152.28,152.2,61.9271]
[1751553252669,5.23521977,152.28,152.2,55.36]
[1751553253073,6.566,152.24,152.2,61.9272]
[1751553253466,12.35201939,152.27,152.2,55.36]
[1751553253665,6.5655,152.25,152.21,6.5667]
[1751553254372,6.5656,152.24,152.2,61.9272]
[1751553255577,13.81176504,152.25,152.21,6.5669]
[1751553255777,7.24636504,152.25,152.21,6.5669]
[1751553255981,7.24636504,152.25,152.2,55.36]
[1751553256172,6.5652,152.26,152.2,55.36]
[1751553256373,7.24636504,152.28,152.2,62.60636504]
[1751553256775,7.24636504,152.3,152.2,62.60636504]
[1751553257277,6.5642,152.28,152.2,62.60636504]
[1751553257578,7.24636504,152.31,152.2,55.36]
[1751553257775,6.5638,152.29,152.25,6.565]
[1751553257974,7.24636504,152.31,152.21,7.24636504]
[1751553258483,14.06406504,152.33,152.23,7.24636504]
[1751553258678,7.24636504,152.35,152.25,7.24636504]
[1751553258981,7.24636504,152.35,152.26,55.34]
[1751553259280,2.559026,152.37,152.26,55.34]
[1751553259476,7.24636504,152.34,152.26,55.34]
[1751553259786,7.24636504,152.34,152.28,6.5637]
[1751553260172,2.559026,152.37,152.28,6.5637]
[1751553260376,5.21353178,152.37,152.28,6.5637]
[1751553260576,7.24636504,152.34,152.26,55.34]
[1751553261080,2.559026,152.37,152.26,55.34]
[1751553261281,7.24636504,152.33,152.26,55.34]
[1751553261475,7.24636504,152.35,152.3,6.563]
[1751553261676,9.80539104,152.37,152.28,7.24636504]
[1751553262279,9.80539104,152.37,152.28,216.72]
[1751553262678,6.5616,152.34,152.3,6.5629]
[1751553263776,6.562,152.33,152.3,6.5629]
[1751553264082,2.559026,152.36,152.28,216.72]
[1751553264284,2.55203535,152.37,152.28,216.72]
[1751553264484,2.55203535,152.38,152.33,6.5614]
[1751553264686,2.55203535,152.38,152.31,62.58636504]
[1751553265183,2.55203535,152.38,152.32,2.1828]
[1751553265379,2.55203535,152.38,152.32,4.552]
[1751553265879,7.24636504,152.41,152.32,4.552]
[1751553266273,2.55203535,152.42,152.32,4.552]
[1751553266473,55.34,152.51,152.38,7.24636504]
[1751553266474,7.24636504,152.47,152.38,7.24636504]
[1751553266674,6.59519839,152.49,152.4,7.24636504]
[1751553266882,6.59519839,152.49,152.42,7.24636504]
[1751553267073,6.5547,152.5,152.42,7.24636504]
[1751553267273,4.04095971,152.5,152.41,55.34]
[1751553267481,13.83536618,152.53,152.44,7.24636504]
[1751553268080,6.5543,152.51,152.44,7.24636504]
[1751553268284,6.58900114,152.52,152.44,7.24636504]
[1751553268484,6.58900114,152.53,152.44,7.24636504]
[1751553268690,6.5547,152.5,152.44,7.24636504]
[1751553269076,6.58900114,152.53,152.44,7.24636504]
[1751553269482,6.58900114,152.53,152.46,7.24636504]
[1751553269680,11.18200114,152.54,152.46,7.24636504]
[1751553269982,6.5538,152.52,152.46,55.32]
[1751553270480,6.5538,152.52,152.46,270.62]
[1751553270681,6.5538,152.52,152.48,6.5551]
[1751553272089,4.593,152.54,152.48,6.5551]
[1751553272486,6.5535,152.53,152.49,6.5549]
[1751553272690,55.34,152.55,152.46,270.62]
[1751553272987,6.5532,152.53,152.46,270.62]
[1751553273385,14.67186835,152.56,152.46,270.62]
[1751553273790,14.67186835,152.56,152.39,574.1919]
[1751553273791,12.29256835,152.53,152.39,574.1919]
[1751553274088,6.5548,152.5,152.43,12.29256835]
[1751553274287,12.29256835,152.55,152.45,12.29256835]
[1751553274487,6.5534,152.53,152.49,6.5546]
[1751553274789,12.29256835,152.55,152.46,269.84]
[1751553275292,6.5539,152.52,152.48,6.555]
[1751553276185,12.29256835,152.51,152.43,55.26]
[1751553276885,12.29256835,152.49,152.43,55.26]
[1751553277385,4.5703,152.5,152.43,55.26]
[1751553277590,12.29256835,152.51,152.43,55.26]
[1751553277987,12.29256835,152.51,152.45,6.5565]
[1751553277988,6.5552,152.49,152.45,6.5565]
[1751553278193,6.5552,152.49,152.43,55.26]
[1751553278393,59.8303,152.55,152.43,55.26]
[1751553278590,12.29256835,152.55,152.45,12.29256835]
[1751553278789,12.29256835,152.55,152.43,67.55256835]
[1751553278988,567.24,152.57,152.43,67.55256835]
[1751553279189,12.29256835,152.56,152.45,12.29256835]
[1751553279793,12.29256835,152.56,152.5,6.5542]
[1751553279991,12.29256835,152.54,152.43,55.26]
[1751553280291,12.29256835,152.54,152.43,67.55256835]
[1751553280687,567.24,152.57,152.43,67.55256835]
[1751553280888,6.5543,152.51,152.47,6.5557]
[1751553281086,12.29256835,152.54,152.47,6.5557]
[1751553281493,12.29256835,152.54,152.46,6.556]
[1751553281690,2.2513,152.53,152.46,6.556]
[1751553281892,12.29256835,152.52,152.46,6.556]
[1751553282193,12.29256835,152.5,152.43,55.26]
[1751553282587,12.29256835,152.5,152.43,61.8172]
[1751553282787,12.29256835,152.48,152.43,55.26]
[1751553283390,6.557,152.45,152.43,55.26]
[1751553283589,12.29256835,152.48,152.39,628.0119]
[1751553283796,6.5565,152.46,152.43,6.5572]
[1751553284090,12.29256835,152.49,152.39,628.0119]
[1751553284496,6.5561,152.47,152.39,628.0119]
[1751553285195,6.5555,152.48,152.39,628.0119]
[1751553285394,6.5555,152.48,152.4,12.29256835]
[1751553286099,6.556,152.47,152.4,12.29256835]
[1751553286396,12.29256835,152.51,152.4,12.29256835]
[1751553286591,12.29256835,152.49,152.39,628.0119]
[1751553286786,2.3725,152.52,152.39,628.0119]
[1751553286992,12.29256835,152.51,152.39,640.30446835]
[1751553287387,12.29256835,152.51,152.41,12.29256835]
[1751553287586,12.29256835,152.51,152.39,628.0119]
[1751553287891,6.5547,152.5,152.47,6.5557]
[1751553288089,14.66506835,152.52,152.41,12.29256835]
[1751553288591,6.5551,152.49,152.41,12.29256835]
[1751553288788,14.66506835,152.52,152.41,12.29256835]
[1751553289397,6.5554,152.48,152.45,6.5565]
[1751553289899,6.5551,152.49,152.45,6.5565]
[1751553290092,14.66506835,152.52,152.41,12.29256835]
[1751553290296,2.3725,152.52,152.42,12.29256835]
[1751553290500,6.5543,152.51,152.42,12.29256835]
[1751553290696,2.3725,152.52,152.42,12.29256835]
[1751553290895,12.29256835,152.54,152.44,12.29256835]
[1751553291095,12.29256835,152.54,152.45,265.96]
[1751553291291,12.29256835,152.56,152.45,265.96]
[1751553291700,6.553,152.54,152.5,6.5541]
[1751553292102,7.22012166,152.55,152.46,7.22012166]
[1751553292302,567.24,152.57,152.46,7.22012166]
[1751553292303,60.5558,152.58,152.47,6.9882]
[1751553292496,7.22012166,152.56,152.47,6.9882]
[1751553292690,7.22012166,152.56,152.48,7.22012166]
[1751553292898,13.77232166,152.56,152.53,6.5532]
[1751553293296,6.5517,152.57,152.53,6.5532]
[1751553293596,7.22012166,152.58,152.5,61.04012166]
[1751553293803,6.5518,152.57,152.5,61.04012166]
[1751553294004,7.22012166,152.58,152.5,61.04012166]
[1751553294198,7.22012166,152.58,152.54,6.5525]
[1751553294398,6.5517,152.57,152.54,6.5525]
[1751553295305,13.77132166,152.58,152.54,6.5525]
[1751553295500,6.5512,152.58,152.54,6.5525]
[1751553295692,7.22012166,152.59,152.55,6.5523]
[1751553295899,13.77102166,152.59,152.55,6.5523]
[1751553296394,7.22012166,152.59,152.51,7.22012166]
[1751553296804,7.22012166,152.59,152.53,6.5529]
[1751553297008,7.22012166,152.55,152.47,6.9882]
[1751553297503,6.5533,152.53,152.5,6.5543]
[1751553298003,7.22012166,152.55,152.47,6.9882]
[1751553298399,53.8,152.58,152.47,6.9882]
[1751553298794,7.22012166,152.55,152.47,6.9882]
[1751553299004,7.22012166,152.55,152.51,6.5537]
[1751553299198,6.5528,152.54,152.51,6.5537]
[1751553299905,13.77272166,152.55,152.51,6.5537]
[1751553300106,7.22012166,152.55,152.51,6.5537]
[1751553300298,7.22012166,152.55,152.47,6.9882]
[1751553300299,7.22012166,152.56,152.47,6.9882]
[1751553300700,7.22012166,152.56,152.47,14.20832166]
[1751553300903,6.5532,152.54,152.47,14.20832166]
[1751553301505,6.5532,152.54,152.5,6.5542]
[1751553301705,6.5532,152.54,152.47,14.20832166]
[1751553302204,6.5534,152.53,152.47,14.20832166]
[1751553302600,7.22012166,152.56,152.47,6.9882]
[1751553302802,6.5532,152.54,152.47,14.20832166]
[1751553303000,7.22012166,152.56,152.47,14.20832166]
[1751553303399,6.5535,152.53,152.5,6.5543]
[1751553303699,7.22012166,152.54,152.47,6.9882]
[1751553303899,7.22012166,152.54,152.49,6.5549]
[1751553304109,7.22012166,152.54,152.46,53.8]
[1751553304609,7.22012166,152.48,152.41,53.8]
[1751553304803,7.22012166,152.46,152.41,53.8]
[1751553305001,6.5556,152.48,152.45,6.5565]
[1751553305202,7.22012166,152.49,152.41,53.8]
[1751553305501,7.22012166,152.47,152.41,53.8]
[1751553305810,6.9765,152.53,152.41,53.8]
[1751553306103,6.5548,152.5,152.42,7.22012166]
[1751553306302,5.34586307,152.49,152.42,7.22012166]
[1751553306501,6.5544,152.51,152.44,7.22012166]
[1751553306702,14.19662166,152.53,152.44,7.22012166]
[1751553306999,5.35562585,152.52,152.44,9.61892166]
[1751553307195,14.19662166,152.53,152.44,9.61892166]
[1751553307397,5.35995923,152.52,152.46,7.22012166]
[1751553307598,13.1375541,152.56,152.48,7.22012166]
[1751553307796,5.35897262,152.55,152.46,61.02012166]
[1751553307995,7.22012166,152.58,152.49,7.22012166]
[1751553308196,5.36341526,152.57,152.49,7.22012166]
[1751553308500,5.36341526,152.56,152.49,7.22012166]
[1751553308705,7.22012166,152.58,152.47,13.1116]
[1751553308901,5.35996384,152.57,152.51,7.22012166]
[1751553309102,5.35901672,152.56,152.53,7.22012166]
[1751553309303,5.91743244,152.62,152.55,7.22012166]
[1751553309507,5.36351964,152.61,152.56,53.8]
[1751553309804,5.36351964,152.6,152.57,6.5514]
[1751553310106,5.36351964,152.59,152.56,53.8]
[1751553310302,7.22012166,152.61,152.59,6.5505]
[1751553310498,5.36773836,152.6,152.56,53.8]
[1751553310702,5.36773836,152.59,152.56,53.8]
[1751553310902,5.36773836,152.59,152.57,6.5513]
[1751553311208,13.77022166,152.61,152.56,53.8]
[1751553311403,5.38728035,152.6,152.58,6.5508]
[1751553311711,5.38728035,152.59,152.58,6.5508]
[1751553312010,5.38728035,152.59,152.56,53.8]
[1751553312308,5.38728035,152.58,152.56,53.8]
[1751553312506,2.3967,152.62,152.56,53.8]
[1751553312700,5.38665673,152.61,152.56,53.8]
[1751553312901,5.38665673,152.6,152.56,53.8]
[1751553313100,5.38573682,152.59,152.56,61.02012166]
[1751553313307,13.16353528,152.65,152.56,61.02012166]
[1751553313505,5.38298075,152.64,152.61,6.5495]
[1751553313700,5.38298075,152.64,152.56,61.02012166]
[1751553313701,5.38298075,152.63,152.56,61.02012166]
[1751553313911,5.38298075,152.62,152.56,61.02012166]
[1751553314208,5.38298075,152.61,152.56,61.02012166]
[1751553314399,4.24992528,152.64,152.56,61.02012166]
[1751553314601,5.37736579,152.63,152.56,61.02012166]
[1751553314800,11.47004694,152.65,152.56,61.02012166]
[1751553314801,5.37736579,152.62,152.56,61.02012166]
[1751553315104,5.94341362,152.66,152.56,61.02012166]
[1751553315105,13.16353528,152.66,152.56,61.02012166]
[1751553315306,9.62514452,152.65,152.56,61.02012166]
[1751553315610,5.37907282,152.64,152.56,53.8]
[1751553315808,5.37907282,152.63,152.57,7.22012166]
[1751553316008,10.7942717,152.65,152.61,6.5495]
[1751553316310,5.37541766,152.64,152.61,6.5495]
[1751553316511,5.37541766,152.63,152.62,6.5494]
[1751553316807,9.62230628,152.65,152.57,7.22012166]
[1751553317002,5.37541766,152.64,152.56,53.8]
[1751553317208,7.22012166,152.64,152.56,53.8]
[1751553317411,7.22012166,152.62,152.56,53.8]
[1751553318106,7.22012166,152.64,152.56,53.8]
[1751553318409,7.22012166,152.66,152.58,7.22012166]
[1751553318598,7.22012166,152.68,152.58,7.22012166]
[1751553318802,5.38501031,152.67,152.58,7.22012166]
[1751553319004,5.38501031,152.67,152.6,7.22012166]
[1751553319198,4.26380615,152.69,152.62,7.22012166]
[1751553319403,5.38439208,152.68,152.62,59.58012166]
[1751553319609,6.5465,152.69,152.65,6.5478]
[1751553319806,6.5465,152.69,152.62,59.58012166]
[1751553320206,6.5469,152.68,152.64,6.5482]
[1751553320403,7.22012166,152.69,152.62,59.58012166]
[1751553320807,6.5477,152.66,152.62,52.36]
[1751553321112,9.60162166,152.7,152.62,52.36]
[1751553321700,9.60162166,152.7,152.61,4.5686]
[1751553321907,7.22012166,152.62,152.5,52.36]
[1751553322209,7.22012166,152.58,152.5,52.36]
[1751553322607,2.3069,152.63,152.5,52.36]
[1751553322805,6.5505,152.6,152.56,6.5518]
[1751553323001,7.22012166,152.6,152.55,52.36]
[1751553324612,4.25449781,152.65,152.56,7.22012166]
[1751553324809,11.47461947,152.66,152.56,11.86572166]
[1751553325113,6.5487,152.64,152.56,11.86572166]
[1751553325312,7.22012166,152.66,152.58,7.22012166]
[1751553325504,2.3069,152.67,152.62,6.5493]
[1751553325707,2.3069,152.67,152.58,7.22012166]
[1751553325708,5.39067545,152.68,152.61,52.36]
[1751553325907,11.93787545,152.68,152.61,52.36]
[1751553326108,5.39067545,152.67,152.61,52.36]
[1751553326316,8.64407219,152.7,152.61,52.36]
[1751553326511,11.93837191,152.69,152.65,6.5478]
[1751553326712,5.39167191,152.68,152.62,7.22012166]
[1751553326912,5.39167191,152.67,152.63,2.3199]
[1751553327105,6.5466,152.69,152.63,2.3199]
[1751553327305,5.39020713,152.68,152.63,2.3199]
[1751553327518,11.93710713,152.68,152.63,2.3199]
[1751553327818,7.22012166,152.68,152.63,2.3199]
[1751553328012,6.5474,152.67,152.63,6.5489]
[1751553328215,7.22012166,152.68,152.63,6.5489]
[1751553328406,5.39261509,152.67,152.61,52.36]
[1751553328606,7.22012166,152.68,152.64,6.5481]
[1751553328810,5.39175723,152.67,152.61,52.36]
[1751553329011,7.22012166,152.7,152.64,6.5482]
[1751553329611,13.76712166,152.68,152.64,6.5482]
[1751553330414,7.22012166,152.68,152.61,52.36]
[1751553330816,13.76712166,152.68,152.64,6.5483]
[1751553331117,7.22012166,152.68,152.61,52.36]
[1751553331312,6.5474,152.67,152.61,52.36]
[1751553331514,7.22012166,152.68,152.61,52.36]
[1751553331912,13.76712166,152.68,152.61,52.36]
[1751553332114,7.22012166,152.68,152.61,52.36]
[1751553332511,7.22012166,152.68,152.65,6.5478]
[1751553332712,7.22012166,152.7,152.61,52.36]
[1751553332914,7.22012166,152.71,152.62,7.22012166]
[1751553333611,2.2287,152.74,152.66,7.22012166]
[1751553333807,9.38832166,152.75,152.66,7.22012166]
[1751553333808,13.68628741,152.75,152.67,52.34]
[1751553334112,7.22012166,152.75,152.67,52.34]
[1751553334318,7.22012166,152.75,152.67,56.8909]
[1751553335617,6.5443,152.74,152.71,6.5455]
[1751553336119,6.5443,152.74,152.69,6.5463]
[1751553336320,7.22012166,152.73,152.67,56.8909]
[1751553336923,13.76492166,152.73,152.69,6.5461]
[1751553337314,13.76492166,152.73,152.67,56.8909]
[1751553337521,13.76502166,152.73,152.69,6.5461]
[1751553338117,6.5444,152.74,152.7,6.5456]
[1751553338421,2.3685,152.76,152.69,7.22012166]
[1751553338422,7.22012166,152.76,152.69,7.22012166]
[1751553338719,9.53452166,152.78,152.69,7.22012166]
[1751553339218,7.22012166,152.77,152.71,6.5453]
[1751553339418,7.22012166,152.76,152.71,6.5453]
[1751553339610,6.5434,152.76,152.72,6.5451]
[1751553339815,13.76352166,152.76,152.72,6.5451]
[1751553340114,2.3144,152.78,152.74,6.544]
[1751553340317,2.3052,152.79,152.72,51.66]
[1751553340723,7.22012166,152.78,152.72,51.66]
[1751553340916,2.2108,152.81,152.72,51.66]
[1751553341118,7.22012166,152.8,152.72,51.66]
[1751553341511,2.2108,152.81,152.67,4.5509]
[1751553341512,7.22012166,152.76,152.67,4.5509]
[1751553341716,7.22012166,152.7,152.66,565.76]
[1751553342019,2.2298,152.75,152.64,51.66]
[1751553342214,7.22012166,152.7,152.67,6.547]
[1751553342421,4.5648,152.74,152.64,51.66]
[1751553342623,7.22012166,152.7,152.64,51.66]
[1751553342821,4.5648,152.74,152.64,51.66]
[1751553343121,7.22012166,152.71,152.64,51.66]
[1751553343317,6.5465,152.69,152.66,6.5474]
[1751553343519,7.22012166,152.71,152.64,51.66]
[1751553343724,7.22012166,152.66,152.59,565.7]
[1751553344021,7.22012166,152.64,152.56,53.9591]
[1751553344517,6.549,152.63,152.56,53.9591]
[1751553344718,7.22012166,152.64,152.56,53.9591]
[1751553344919,7.22012166,152.65,152.61,6.5498]
[1751553345220,51.66,152.71,152.56,53.9591]
[1751553345221,7.22012166,152.66,152.57,7.22012166]
[1751553345416,6.5479,152.66,152.63,6.5488]
[1751553345721,20.30942166,152.73,152.61,51.66]
[1751553345722,7.22012166,152.69,152.61,51.66]
[1751553345923,6.5465,152.69,152.62,58.88012166]
[1751553346124,7.22012166,152.72,152.62,269.11492166]
[1751553346324,7.22012166,152.72,152.63,2.185]
[1751553346618,7.22012166,152.72,152.67,6.5469]
[1751553346824,7.22012166,152.72,152.63,2.185]
[1751553347222,6.5463,152.7,152.66,6.5474]
[1751553347419,7.22012166,152.72,152.63,2.185]
[1751553347813,6.5465,152.69,152.66,6.5474]
[1751553348224,7.22012166,152.72,152.63,2.185]
[1751553348426,7.22012166,152.72,152.65,6.5477]
[1751553348626,56.2248,152.74,152.63,2.185]
[1751553348825,7.22012166,152.71,152.63,2.185]
[1751553349022,6.5466,152.69,152.66,6.5473]
[1751553349226,7.22012166,152.71,152.63,2.185]
[1751553349726,7.22012166,152.69,152.62,53.9748]
[1751553349920,7.22012166,152.67,152.62,51.66]
[1751553351422,6.5483,152.65,152.62,58.2093]
[1751553352427,6.5478,152.66,152.63,6.5488]
[1751553352828,13.14146522,152.73,152.62,51.66]
[1751553353029,13.76712166,152.68,152.65,6.548]
[1751553353828,13.76712166,152.68,152.62,51.66]
[1751553353829,6.5472,152.67,152.64,6.5484]
[1751553355028,13.76712166,152.68,152.65,6.548]
[1751553355632,7.22012166,152.68,152.66,6.5475]
[1751553356535,13.76692166,152.68,152.65,6.5479]
[1751553356734,62.14614356,152.74,152.62,51.66]
[1751553356932,14.25823747,152.73,152.62,51.66]
[1751553357132,7.22012166,152.7,152.66,6.5473]
[1751553357341,7.22012166,152.7,152.62,51.66]
[1751553357736,6.5468,152.68,152.62,51.66]
[1751553357936,7.22012166,152.7,152.62,51.66]
[1751553358136,7.22012166,152.7,152.65,6.5477]
[1751553358638,7.22012166,152.7,152.65,6.5478]
[1751553358639,6.547,152.68,152.65,6.5478]
[1751553358839,7.22012166,152.68,152.62,51.66]
[1751553359240,6.5478,152.66,152.63,6.5487]
[1751553359637,6.5489,152.63,152.62,51.66]
[1751553359844,7.22012166,152.64,152.62,51.66]
[1751553360038,7.22012166,152.66,152.62,51.66]
[1751553360438,6.5485,152.64,152.62,51.66]
[1751553360940,6.5483,152.65,152.62,58.2092]
[1751553361340,7.22012166,152.66,152.62,51.66]
[1751553361541,7.22012166,152.64,152.58,53.8208]
[1751553361732,7.22012166,152.6,152.54,53.883]
[1751553361937,7.22012166,152.58,152.56,6.5517]
[1751553362340,6.7448,152.63,152.54,51.66]
[1751553362545,11.07354913,152.63,152.54,51.66]
[1751553362844,7.22012166,152.56,152.54,51.66]
[1751553363038,7.22012166,152.56,152.5,51.66]
[1751553363645,5.92134356,152.61,152.5,51.66]
[1751553363646,7.22012166,152.58,152.5,51.66]
[1751553363941,7.22012166,152.62,152.53,7.22012166]
[1751553364238,7.22012166,152.62,152.54,206.38]
[1751553364436,6.7448,152.63,152.55,58.90012166]
[1751553364642,11.97391031,152.62,152.58,6.551]
[1751553364843,6.5495,152.62,152.58,6.551]
[1751553365049,7.22012166,152.62,152.49,4.5898]
[1751553365235,7.22012166,152.6,152.51,7.22012166]
[1751553365440,7.22012166,152.58,152.52,51.68]
[1751553365636,7.22012166,152.56,152.52,51.68]
[1751553365839,7.22012166,152.56,152.52,258.1]
[1751553366038,7.22012166,152.56,152.52,6.5533]
[1751553366442,7.22012166,152.54,152.5,51.68]
[1751553366639,7.22012166,152.54,152.51,6.5537]
[1751553366939,7.22012166,152.52,152.5,51.68]
[1751553367242,7.22012166,152.52,152.46,617.44]
[1751553367545,7.22012166,152.5,152.46,617.44]
[1751553367945,7.22012166,152.5,152.48,6.5553]
[1751553368146,7.22012166,152.5,152.46,617.44]
[1751553368541,5.92134356,152.6,152.46,624.66012166]
[1751553368749,7.22012166,152.57,152.48,7.22012166]
[1751553369850,13.77162166,152.57,152.53,6.5528]
[1751553370351,6.5519,152.56,152.52,6.5534]
[1751553370550,6.5519,152.56,152.51,258.92]
[1751553370746,6.5519,152.56,152.52,6.5533]
[1751553371147,7.22012166,152.57,152.51,258.92]
[1751553371347,7.22012166,152.55,152.51,51.7]
[1751553371753,7.22012166,152.53,152.51,51.7]
[1751553372550,7.22012166,152.55,152.51,58.254]
[1751553372749,7.22012166,152.55,152.51,51.7]
[1751553372952,7.22012166,152.57,152.51,51.7]
[1751553373150,7.22012166,152.55,152.51,51.7]
[1751553373351,13.77262166,152.55,152.51,51.7]
[1751553373552,13.77262166,152.55,152.52,6.5534]
[1751553374156,7.22012166,152.57,152.51,51.7]
[1751553374756,7.22012166,152.55,152.51,51.7]
[1751553375150,13.77272166,152.55,152.52,6.5533]
[1751553375351,2.3284,152.58,152.51,51.7]
[1751553375652,7.22012166,152.57,152.51,51.7]
[1751553375849,6.553,152.54,152.51,58.2539]
[1751553376246,6.5528,152.54,152.51,58.254]
[1751553377057,7.22012166,152.55,152.51,51.7]
[1751553377262,7.22012166,152.57,152.51,51.7]
[1751553377557,6.5523,152.56,152.53,6.5529]
[1751553378058,6.5524,152.55,152.52,6.5534]
[1751553378356,7.22012166,152.57,152.52,6.5534]
[1751553378759,7.22012166,152.57,152.53,6.5531]
[1751553378960,7.22012166,152.57,152.51,51.7]
[1751553379361,6.5526,152.55,152.52,6.5534]
[1751553380057,7.22012166,152.57,152.52,6.5534]
[1751553380261,7.22012166,152.55,152.51,51.7]
[1751553380460,7.22012166,152.53,152.48,51.4]
[1751553380756,13.77372166,152.53,152.48,257.92]
[1751553380958,7.22012166,152.53,152.48,257.92]
[1751553381358,6.553,152.54,152.51,6.554]
[1751553381661,2.3284,152.58,152.48,265.14012166]
[1751553381860,7.22012166,152.57,152.53,6.5529]
[1751553382059,6.5522,152.56,152.53,6.5529]
[1751553382960,6.5522,152.56,152.52,6.5534]
[1751553383359,7.22012166,152.57,152.48,265.14012166]
[1751553383557,7.22012166,152.57,152.5,6.5542]
[1751553383857,7.22012166,152.55,152.46,568.0791]
[1751553384056,7.22012166,152.53,152.47,51.4]
[1751553384256,7.22012166,152.53,152.47,257.72]
[1751553384456,7.22012166,152.53,152.47,57.9556]
[1751553384656,7.22012166,152.53,152.47,51.4]
[1751553385061,7.22012166,152.53,152.48,6.5551]
[1751553385457,6.5543,152.51,152.48,6.5551]
[1751553385652,7.22012166,152.53,152.47,57.9557]
[1751553386762,6.5549,152.49,152.47,51.4]
[1751553387157,6.5549,152.49,152.47,264.2356]
[1751553387363,7.22012166,152.53,152.47,257.68]
[1751553387965,6.5543,152.51,152.47,257.68]
[1751553388262,6.5543,152.51,152.48,6.5551]
[1751553388456,6.5543,152.51,152.47,257.68]
[1751553388457,7.22012166,152.55,152.47,264.90012166]
[1751553388657,53.7284,152.58,152.47,264.90012166]
[1751553388859,7.22012166,152.57,152.47,264.90012166]
[1751553389357,7.22012166,152.59,152.51,7.22012166]
[1751553389560,6.5511,152.58,152.52,260.0767]
[1751553389759,6.5511,152.58,152.53,11.73512166]
[1751553389959,6.5511,152.58,152.55,6.5521]
[1751553390151,6.5511,152.58,152.53,11.73512166]
[1751553390152,6.5515,152.57,152.53,11.73512166]
[1751553390663,7.22012166,152.61,152.53,4.515]
[1751553390960,7.22012166,152.59,152.53,4.515]
[1751553391362,6.5523,152.55,152.53,4.515]
[1751553391556,6.5523,152.55,152.53,11.0682]
[1751553392360,6.5523,152.55,152.53,4.515]
[1751553392558,6.553,152.54,152.52,260.0767]
[1751553392759,7.22012166,152.57,152.52,51.42]
[1751553392964,5.92134356,152.63,152.53,6.5529]
[1751553393164,7.22012166,152.58,152.53,6.5529]
[1751553394060,7.22012166,152.58,152.52,57.9734]
[1751553394363,6.5526,152.55,152.52,57.9734]
[1751553394964,6.5526,152.55,152.53,6.5532]
[1751553395364,6.5522,152.56,152.52,51.42]
[1751553395666,6.5522,152.56,152.53,6.5531]
[1751553395860,6.5515,152.57,152.52,51.42]
[1751553396061,7.22012166,152.6,152.54,6.5525]
[1751553396666,7.22012166,152.6,152.52,51.42]
[1751553396667,6.5517,152.57,152.55,6.5523]
[1751553396866,7.22012166,152.6,152.52,51.42]
[1751553397265,6.5517,152.57,152.54,6.5525]
[1751553397867,7.22012166,152.6,152.52,51.42]
[1751553398166,7.22012166,152.62,152.53,213.48012166]
[1751553398365,6.551,152.58,152.56,6.5517]
[1751553399662,6.8288,152.64,152.53,206.26]
[1751553399964,7.22012166,152.62,152.54,4.4283]
[1751553400166,7.22012166,152.62,152.57,7.22012166]
[1751553400167,6.5496,152.62,152.57,7.22012166]
[1751553400369,200.78165489,152.65,152.58,257.32]
[1751553400565,6.5491,152.63,152.61,6.5497]
[1751553400770,7.22012166,152.63,152.58,51.08]
[1751553401066,7.22012166,152.61,152.58,51.08]
[1751553401271,6.5514,152.58,152.56,206.24]